bitfinex/quotes_BTCUSD_20260215
["timestamp","ask_amount","ask_price","bid_price","bid_amount"]
[1771169333799,0.00043149,68948.0,68937.0,0.02307215]
[1771169334015,0.00043149,68948.0,68939.0,0.02307215]
[1771169334516,0.00043149,68948.0,68939.0,0.09360803]
[1771169334666,0.00043149,68948.0,68940.0,0.02307215]
[1771169335346,0.07881664,68955.0,68940.0,0.02311215]
[1771169335551,0.09488306,68955.0,68940.0,0.02354364]
[1771169336048,0.02282973,68956.0,68940.0,0.02354364]
[1771169336049,0.03889615,68956.0,68940.0,0.02354364]
[1771169336464,0.03889615,68956.0,68941.0,0.02307215]
[1771169337634,0.01606642,68958.0,68941.0,0.02307215]
[1771169337832,0.01606642,68958.0,68943.0,0.02307215]
[1771169338234,0.11832551,68960.0,68943.0,0.02307215]
[1771169338235,0.13439193,68960.0,68943.0,0.02307215]
[1771169338402,0.11832551,68960.0,68942.0,0.02307215]
[1771169338762,0.11832551,68960.0,68942.0,0.09559605]
[1771169338978,4e-05,68960.0,68943.0,0.09360803]
[1771169339177,4e-05,68960.0,68944.0,0.02307215]
[1771169339576,4e-05,68960.0,68946.0,0.02307215]
[1771169339804,4e-05,68960.0,68948.0,0.02307215]
[1771169340009,4e-05,68960.0,68940.0,0.90110203]
[1771169340010,4e-05,68960.0,68950.0,0.02307215]
[1771169340241,0.0002967,68963.0,68952.0,0.02307215]
[1771169340854,0.0002967,68963.0,68954.0,0.02307215]
[1771169341054,0.0002967,68963.0,68950.0,4e-05]
[1771169341055,0.09575248,68963.0,68950.0,4e-05]
[1771169341203,0.11858221,68963.0,68950.0,4e-05]
[1771169341413,0.0002967,68963.0,68953.0,0.09360803]
[1771169341630,0.0002967,68963.0,68954.0,0.02307215]
[1771169343533,0.0002967,68963.0,68950.0,0.61056736]
[1771169343534,0.0003367,68980.0,68960.0,4e-05]
[1771169343742,0.0003367,68980.0,68961.0,0.02307215]
[1771169344167,0.09545578,68979.0,68961.0,0.02307215]
[1771169344361,0.0003367,68980.0,68961.0,0.02307215]
[1771169344362,0.02282973,68976.0,68961.0,0.02307215]
[1771169344685,0.0004,68963.0,68961.0,0.02307215]
[1771169344841,0.11828551,68976.0,68961.0,0.02320155]
[1771169344842,0.02282973,68976.0,68961.0,0.02320155]
[1771169345040,0.00832857,68976.0,68961.0,0.02320155]
[1771169345444,0.00832857,68976.0,68961.0,0.00855368]
[1771169345846,0.0004,68970.0,68961.0,0.00855368]
[1771169347671,0.0004,68970.0,68961.0,0.16624201]
[1771169347873,0.00906548,68980.0,68970.0,4e-05]
[1771169348301,4e-05,68966.0,68965.0,0.02295215]
[1771169348706,4e-05,68970.0,68962.0,0.02307215]
[1771169349624,4e-05,68970.0,68962.0,0.02277831]
[1771169350115,4e-05,68970.0,68961.0,0.0001294]
[1771169350546,1.1221,68965.0,68961.0,0.0001294]
[1771169350982,1.1221,68965.0,68950.0,0.07259619]
[1771169350983,0.01205299,68961.0,68952.0,0.000163]
[1771169351197,0.10750877,68960.0,68944.0,0.02307215]
[1771169351434,0.10750877,68960.0,68936.0,0.290122]
[1771169351435,0.09545578,68956.0,68938.0,0.02307215]
[1771169351644,0.09545578,68954.0,68938.0,0.02307215]
[1771169351847,0.09545578,68952.0,68938.0,0.02307215]
[1771169352053,0.07263485,68961.0,68938.0,0.02307215]
[1771169352054,0.10746877,68951.0,68938.0,0.02307215]
[1771169352261,0.01201299,68959.0,68934.0,0.09360803]
[1771169352467,0.00012942,68961.0,68931.0,0.0003884]
[1771169352468,0.01201299,68958.0,68938.0,0.02307215]
[1771169352684,0.00012942,68961.0,68938.0,0.02307215]
[1771169352685,0.10746877,68956.0,68938.0,0.02307215]
[1771169353519,0.00012942,68961.0,68931.0,0.0003884]
[1771169353520,0.09772668,68953.0,68931.0,0.0003884]
[1771169353722,0.01201299,68950.0,68931.0,0.0003884]
[1771169353931,0.01201299,68948.0,68931.0,0.0003884]
[1771169354135,0.01201299,68946.0,68931.0,0.0003884]
[1771169354523,0.01201299,68946.0,68930.0,0.00999763]
[1771169357421,0.01201299,68946.0,68931.0,0.0002]
[1771169357626,0.01201299,68946.0,68932.0,0.02411439]
[1771169357845,0.02267514,68951.0,68932.0,0.02411439]
[1771169358178,0.02267514,68950.0,68932.0,0.02411439]
[1771169358303,0.02267514,68948.0,68932.0,0.02411439]
[1771169358504,0.09772668,68947.0,68931.0,0.0002]
[1771169358709,0.09772668,68943.0,68931.0,0.0002]
[1771169358917,0.09772668,68938.0,68925.0,0.0002]
[1771169359148,0.02267514,68937.0,68925.0,0.0002]
[1771169360162,0.02280449,68937.0,68925.0,0.0002]
[1771169360699,0.00012935,68937.0,68925.0,0.02431439]
[1771169362282,0.09772668,68935.0,68925.0,0.0002]
[1771169362486,0.02267514,68934.0,68925.0,0.0002]
[1771169362687,0.00012935,68937.0,68926.0,0.02411439]
[1771169363278,4e-05,68928.0,68926.0,0.02399439]
[1771169363476,4e-05,68934.0,68927.0,0.02411439]
[1771169365180,0.02267514,68943.0,68930.0,8e-05]
[1771169365464,0.02267514,68939.0,68923.0,0.01059967]
[1771169365674,0.02271514,68938.0,68923.0,0.01059967]
[1771169366695,0.02271514,68938.0,68923.0,0.00972985]
[1771169367442,0.09776668,68938.0,68922.0,4e-05]
[1771169367656,0.09772668,68937.0,68922.0,0.00148934]
[1771169367961,0.02267514,68936.0,68922.0,0.00148934]
[1771169368162,4e-05,68938.0,68923.0,0.02411439]
[1771169368361,4e-05,68938.0,68926.0,0.0973208]
[1771169368594,4e-05,68938.0,68927.0,0.02411439]
[1771169368998,4e-05,68938.0,68929.0,0.02411439]
[1771169369592,0.02267514,68943.0,68929.0,0.02411439]
[1771169369593,0.02267514,68949.0,68929.0,0.0973208]
[1771169369816,0.02267514,68949.0,68933.0,0.02411439]
[1771169369817,0.0004,68948.0,68933.0,0.02411439]
[1771169370396,0.02267514,68945.0,68932.0,4e-05]
[1771169372854,0.0004,68948.0,68932.0,4e-05]
[1771169373055,0.0004,68948.0,68933.0,0.02411439]
[1771169373461,4e-05,68938.0,68931.0,0.02411439]
[1771169373716,4e-05,68938.0,68931.0,0.09665066]
[1771169373984,0.0004,68948.0,68932.0,4e-05]
[1771169374190,0.0004,68948.0,68935.0,0.16985272]
[1771169374393,0.0004,68948.0,68937.0,0.02411439]
[1771169374596,0.0004,68948.0,68939.0,0.02411439]
[1771169374800,0.02267514,68953.0,68939.0,0.02411439]
[1771169375207,0.02267514,68953.0,68939.0,0.02396746]
[1771169378269,4e-05,68940.0,68939.0,0.02392746]
[1771169379849,4e-05,68940.0,68939.0,0.12124826]
[1771169380220,4e-05,68940.0,68939.0,0.02392746]
[1771169383528,4e-05,68946.0,68939.0,0.02392746]
[1771169385513,4e-05,68946.0,68935.0,0.00144946]
[1771169386383,4e-05,68946.0,68935.0,0.02502617]
[1771169386588,4e-05,68946.0,68936.0,0.02357671]
[1771169386814,4e-05,68946.0,68937.0,0.02502612]
[1771169387199,4e-05,68946.0,68937.0,0.09755546]
[1771169387405,4e-05,68946.0,68937.0,0.00144941]
[1771169387602,4e-05,68946.0,68936.0,0.61134229]
[1771169388205,4e-05,68946.0,68937.0,0.09610662]
[1771169388382,4e-05,68946.0,68937.0,0.02357671]
[1771169389415,0.00579831,68953.0,68942.0,4e-05]
[1771169389608,0.00579831,68953.0,68943.0,0.61134229]
[1771169389815,0.03809059,68964.0,68943.0,0.61134229]
[1771169389816,0.0004,68955.0,68943.0,0.61134229]
[1771169390057,0.0004,68953.0,68942.0,4e-05]
[1771169393300,4e-05,68944.0,68942.0,4e-05]
[1771169393503,4e-05,68948.0,68942.0,0.02361671]
[1771169393732,4e-05,68952.0,68942.0,0.02361671]
[1771169395325,4e-05,68952.0,68942.0,4e-05]
[1771169395326,0.02441477,68951.0,68942.0,4e-05]
[1771169395688,0.02441477,68949.0,68942.0,4e-05]
[1771169396896,4e-05,68952.0,68938.0,4e-05]
[1771169396897,0.105696,68946.0,68938.0,4e-05]
[1771169397052,0.02441477,68945.0,68938.0,4e-05]
[1771169397559,0.02441477,68945.0,68930.0,0.61142229]
[1771169397560,0.02441477,68944.0,68930.0,0.61142229]
[1771169397792,0.105696,68941.0,68930.0,0.61142229]
[1771169398144,0.02441477,68940.0,68930.0,0.61142229]
[1771169398345,4e-05,68944.0,68930.0,0.61142229]
[1771169398346,0.02441477,68938.0,68930.0,0.61142229]
[1771169399574,0.02441477,68938.0,68930.0,8e-05]
[1771169400430,0.02441477,68938.0,68922.0,0.02361671]
[1771169400431,0.02441477,68937.0,68922.0,4e-05]
[1771169400657,0.02441477,68935.0,68927.0,0.61181011]
[1771169400867,0.00043203,68937.0,68928.0,0.02357671]
[1771169401700,8e-05,68940.0,68930.0,0.61181011]
[1771169401909,4e-05,68948.0,68932.0,0.02357671]
[1771169402135,4e-05,68948.0,68936.0,4e-05]
[1771169402343,4e-05,68948.0,68939.0,0.02357671]
[1771169403175,4e-05,68948.0,68938.0,0.61181011]
[1771169404015,4e-05,68948.0,68938.0,0.61140959]
[1771169406425,0.02445477,68948.0,68938.0,0.61140959]
[1771169406625,0.02445477,68948.0,68936.0,4e-05]
[1771169407064,0.105696,68947.0,68936.0,4e-05]
[1771169407276,0.02441477,68946.0,68936.0,4e-05]
[1771169408219,4e-05,68938.0,68934.0,0.00063413]
[1771169408423,4e-05,68940.0,68934.0,0.00063413]
[1771169408752,4e-05,68940.0,68936.0,0.0002]
[1771169408951,4e-05,68942.0,68936.0,0.0002]
[1771169409154,4e-05,68958.0,68939.0,0.09952907]
[1771169409357,4e-05,68958.0,68942.0,0.02357671]
[1771169409607,4e-05,68958.0,68942.0,0.09952907]
[1771169409756,4e-05,68958.0,68944.0,0.02357671]
[1771169409959,4e-05,68958.0,68946.0,0.02357671]
[1771169413513,0.02210858,68962.0,68950.0,0.0998504]
[1771169413514,0.0002042,68962.0,68950.0,0.0998504]
[1771169413719,0.0004,68967.0,68951.0,0.07251526]
[1771169413896,0.0004,68967.0,68959.0,0.02355123]
[1771169414942,0.00052964,68967.0,68959.0,0.02355123]
[1771169415287,0.00052964,68967.0,68960.0,0.0998504]
[1771169415674,0.12024083,68976.0,68957.0,0.61062072]
[1771169415885,0.09833645,68974.0,68957.0,0.02368087]
[1771169416113,0.02190438,68976.0,68960.0,0.63417195]
[1771169416327,0.02190438,68976.0,68961.0,0.02355123]
[1771169418094,0.0002949,68979.0,68967.0,0.02355123]
[1771169418505,0.0002949,68979.0,68968.0,0.0998504]
[1771169418680,0.0004,68974.0,68969.0,0.0998504]
[1771169418879,0.0004,68974.0,68966.0,0.68311846]
[1771169418880,0.0002949,68979.0,68968.0,0.02355123]
[1771169419124,0.0002949,68979.0,68967.0,0.0998504]
[1771169419125,0.09833645,68978.0,68960.0,4e-05]
[1771169419352,0.02190438,68973.0,68960.0,4e-05]
[1771169419537,0.09833645,68971.0,68960.0,4e-05]
[1771169419736,0.0002949,68979.0,68960.0,0.61066072]
[1771169419936,0.0002949,68979.0,68964.0,0.02355123]
[1771169420372,0.0012949,68979.0,68964.0,0.02355123]
[1771169420800,0.0012949,68979.0,68970.0,0.02355123]
[1771169421015,0.0012949,68979.0,68960.0,0.61066072]
[1771169421221,0.09833645,68978.0,68961.0,0.02355123]
[1771169421844,0.02319928,68979.0,68961.0,0.02355123]
[1771169422066,0.0012949,68979.0,68964.0,0.02355123]
[1771169422314,0.0002949,68979.0,68964.0,0.0998504]
[1771169422479,0.0002949,68979.0,68965.0,0.02355123]
[1771169423089,0.0002949,68979.0,68965.0,0.193]
[1771169423298,4e-05,68968.0,68967.0,0.02355123]
[1771169423444,4e-05,68972.0,68968.0,0.02355123]
[1771169423650,4e-05,68974.0,68968.0,0.02355123]
[1771169424256,0.09833645,68991.0,68969.0,0.0998504]
[1771169424453,0.09833645,68991.0,68971.0,0.02355123]
[1771169424888,0.09833645,68991.0,68972.0,0.02355123]
[1771169425094,0.02190438,68988.0,68972.0,0.02355123]
[1771169426805,0.09833645,68991.0,68972.0,0.02355123]
[1771169427258,0.09833645,68991.0,68973.0,0.02355123]
[1771169427830,0.02190438,68992.0,68974.0,0.02355123]
[1771169428048,0.02190438,68992.0,68975.0,0.02355123]
[1771169429230,0.09863135,68995.0,68974.0,0.02355123]
[1771169429447,0.09863135,68995.0,68975.0,0.02355123]
[1771169429618,0.09863135,68995.0,68976.0,0.02355123]
[1771169431232,0.02190438,68994.0,68976.0,0.02355123]
[1771169431749,0.0002949,68995.0,68978.0,0.02355123]
[1771169432372,0.0002949,68995.0,68981.0,0.02355123]
[1771169432580,0.0002949,68995.0,68983.0,0.02355123]
[1771169432786,0.0004,68994.0,68986.0,0.02355123]
[1771169432997,0.00044,69000.0,68988.0,0.02355123]
[1771169433204,0.02190438,69009.0,68991.0,0.02355123]
[1771169433205,0.0004,69001.0,68991.0,0.02355123]
[1771169433434,0.02190438,69009.0,68992.0,0.02355123]
[1771169433640,0.00044,69010.0,68990.0,4e-05]
[1771169433641,0.0004355,69004.0,68990.0,4e-05]
[1771169433840,0.02190438,68998.0,68980.0,0.61047205]
[1771169434050,0.0004147,68995.0,68980.0,0.61074456]
[1771169434268,0.0004147,68993.0,68980.0,0.61074456]
[1771169434511,0.02190438,68992.0,68980.0,0.61074456]
[1771169434747,0.02190438,68992.0,68974.0,0.11643123]
[1771169434956,0.00012952,68998.0,68982.0,0.02355123]
[1771169435175,0.0004,69007.0,68991.0,0.02355123]
[1771169435367,0.03436372,69007.0,68991.0,0.02355123]
[1771169435568,0.03436372,69007.0,68992.0,0.02355123]
[1771169435792,0.02273625,69007.0,68992.0,0.02355123]
[1771169435996,0.02273625,69007.0,68990.0,0.68237113]
[1771169435997,0.00083187,69007.0,68990.0,0.60989769]
[1771169436212,0.00083187,69007.0,68996.0,0.07246785]
[1771169436418,0.02190438,69005.0,68981.0,0.19556]
[1771169436569,0.02190438,69006.0,68981.0,0.19556]
[1771169436769,0.02190438,69000.0,68981.0,0.19556]
[1771169436974,0.01145243,68997.0,68981.0,0.19556]
[1771169437340,0.02190438,68994.0,68981.0,0.19556]
[1771169437529,0.03335681,68994.0,68982.0,0.001]
[1771169438088,0.03335681,68994.0,68981.0,0.19556]
[1771169438304,0.03335681,68994.0,68974.0,0.02359123]
[1771169438305,8e-05,68980.0,68974.0,0.02359123]
[1771169438497,4e-05,68986.0,68981.0,0.19576]
[1771169439451,4e-05,68986.0,68981.0,0.19588952]
[1771169442442,4e-05,68986.0,68981.0,0.00012952]
[1771169447238,0.00755817,68990.0,68981.0,0.00012952]
[1771169447488,0.01099868,68993.0,68981.0,0.00012952]
[1771169447698,0.01099868,68991.0,68981.0,0.00012952]
[1771169448121,0.0188717,68994.0,68981.0,0.00012952]
[1771169449005,0.01110829,68991.0,68981.0,0.00012952]
[1771169453300,4e-05,68984.0,68981.0,0.00012952]
[1771169453627,4e-05,68984.0,68982.0,0.02296057]
[1771169454345,4e-05,68984.0,68981.0,0.00012952]
[1771169454540,4e-05,68984.0,68981.0,0.00032952]
[1771169458452,4e-05,68986.0,68981.0,0.00032952]
[1771169458630,4e-05,68986.0,68981.0,0.02329009]
[1771169461198,4e-05,68986.0,68981.0,0.00032952]
[1771169465153,4e-05,68986.0,68981.0,0.02329009]
[1771169467098,4e-05,68986.0,68981.0,0.00032952]
[1771169468321,4e-05,68982.0,68981.0,0.00028952]
[1771169469193,4e-05,68986.0,68981.0,0.00028952]
[1771169469404,4e-05,68986.0,68981.0,0.02325009]
[1771169470741,4e-05,68988.0,68981.0,0.02325009]
[1771169472486,4e-05,68988.0,68981.0,0.00028952]
[1771169475898,4e-05,68988.0,68981.0,0.02305079]
[1771169476282,4e-05,68990.0,68981.0,0.02305079]
[1771169483228,0.00044,68990.0,68981.0,0.02305079]
[1771169483399,4e-05,68982.0,68981.0,0.02305079]
[1771169483603,4e-05,68984.0,68981.0,0.02305079]
[1771169483810,4e-05,68986.0,68981.0,0.02305079]
[1771169484136,0.00048,68990.0,68981.0,0.02305079]
[1771169485252,0.00426143,68989.0,68981.0,0.00028952]
[1771169485447,0.00048,68990.0,68981.0,0.00028952]
[1771169488337,0.00388407,68990.0,68981.0,0.00028952]
[1771169488766,0.00048,68990.0,68981.0,0.00028952]
[1771169489959,0.00335007,68995.0,68981.0,0.00028952]
[1771169490140,0.00335007,68995.0,68984.0,4e-05]
[1771169491515,0.00375007,68995.0,68984.0,4e-05]
[1771169491937,0.0004,68995.0,68985.0,0.61066544]
[1771169492073,0.0004,69009.0,68992.0,0.10302145]
[1771169492277,0.00044,69010.0,68996.0,0.02276127]
[1771169492488,0.00044,69010.0,69001.0,0.02276127]
[1771169498278,0.00048,69010.0,69000.0,0.61066544]
[1771169498486,4e-05,69012.0,69002.0,0.02276127]
[1771169499813,0.00073217,69011.0,69002.0,0.02276127]
[1771169502223,0.00044,69014.0,69005.0,0.02276127]
[1771169503645,8e-05,69020.0,69007.0,0.10261607]
[1771169503864,8e-05,69020.0,69008.0,0.02273823]
[1771169504033,0.00020948,69020.0,69010.0,0.61066544]
[1771169504265,0.00020948,69020.0,69011.0,0.02273823]
[1771169505204,0.0004,69018.0,69011.0,0.02273823]
[1771169505560,0.00020948,69020.0,69011.0,0.02273823]
[1771169505768,0.0004,69024.0,69011.0,0.10261607]
[1771169505914,0.0004,69024.0,69013.0,0.02273823]
[1771169508447,0.00112839,69032.0,69012.0,0.10257417]
[1771169508448,0.0002819,69042.0,69021.0,0.02273823]
[1771169508664,0.61070544,69040.0,69023.0,0.02273823]
[1771169509063,0.61070544,69040.0,69022.0,0.20912]
[1771169509263,0.61070544,69040.0,69020.0,4e-05]
[1771169509264,0.00190086,69030.0,69020.0,4e-05]
[1771169509468,0.01038392,69027.0,69020.0,4e-05]
[1771169511438,0.61070544,69040.0,69020.0,4e-05]
[1771169511644,0.00153291,69036.0,69020.0,4e-05]
[1771169511851,0.01001597,69035.0,69020.0,4e-05]
[1771169512025,0.62043723,69040.0,69021.0,0.02273823]
[1771169512406,0.00848306,69039.0,69021.0,0.02273823]
[1771169512614,0.00848306,69029.0,69010.0,0.02281823]
[1771169512827,0.00120873,69026.0,69010.0,0.02281823]
[1771169513127,0.00092471,69021.0,69010.0,8e-05]
[1771169514738,0.00848306,69020.0,69010.0,8e-05]
[1771169514889,0.00523482,69019.0,69010.0,8e-05]
[1771169517201,0.00848306,69020.0,69010.0,8e-05]
[1771169519092,0.00848306,69020.0,69010.0,6.262e-05]
[1771169519297,0.00861247,69020.0,69010.0,6.262e-05]
[1771169519720,0.00012941,69020.0,69011.0,0.02273823]
[1771169519918,0.00012941,69020.0,69010.0,6.262e-05]
[1771169519919,0.00359874,69020.0,69010.0,6.262e-05]
[1771169521797,0.00848306,69019.0,69010.0,6.262e-05]
[1771169521998,0.01165823,69019.0,69010.0,6.262e-05]
[1771169522546,0.00848306,69019.0,69010.0,6.262e-05]
[1771169522764,0.61045604,69020.0,69010.0,6.262e-05]
[1771169522765,0.00777306,69016.0,69010.0,6.262e-05]
[1771169522978,0.01036059,69016.0,69010.0,6.262e-05]
[1771169523242,0.00777306,69011.0,69000.0,8e-05]
[1771169523450,4e-05,69014.0,69000.0,8e-05]
[1771169523451,0.00240491,69010.0,69000.0,8e-05]
[1771169523666,0.00240491,69010.0,69000.0,4e-05]
[1771169525587,0.00240491,69010.0,68995.0,0.02273823]
[1771169528159,0.00240491,69010.0,69002.0,0.0002]
[1771169528351,4e-05,69006.0,69002.0,0.00016]
[1771169536403,4e-05,69010.0,69002.0,0.02271614]
[1771169536634,4e-05,69014.0,69003.0,0.10222632]
[1771169536830,4e-05,69014.0,69004.0,0.02255614]
[1771169537450,0.0004,69010.0,69004.0,0.02255614]
[1771169543197,4e-05,69006.0,69004.0,0.02255614]
[1771169546649,4e-05,69008.0,69004.0,0.02255614]
[1771169546853,4e-05,69014.0,69004.0,0.02255614]
[1771169547003,4e-05,69022.0,69010.0,0.02226253]
[1771169547634,4e-05,69022.0,69011.0,0.02255614]
[1771169547865,0.00044,69024.0,69009.0,0.61037523]
[1771169548070,0.00048,69030.0,69016.0,0.61037523]
[1771169548229,0.00048,69030.0,69020.0,0.02255614]
[1771169548434,0.00048,69030.0,69020.0,0.63278456]
[1771169549152,0.00048,69030.0,69020.0,0.61037523]
[1771169549362,0.00048,69030.0,69021.0,0.02255614]
[1771169550034,4e-05,69034.0,69025.0,0.02255614]
[1771169550235,0.093447,69037.0,69026.0,0.09887846]
[1771169550434,0.093447,69037.0,69027.0,0.02255614]
[1771169551295,0.093447,69037.0,69028.0,0.02255614]
[1771169551296,0.0145707,69037.0,69028.0,0.02255614]
[1771169551496,8e-05,69040.0,69029.0,0.09887846]
[1771169551698,0.0004,69034.0,69031.0,0.02255614]
[1771169551880,8e-05,69040.0,69031.0,0.02255614]
[1771169552797,8e-05,69040.0,69030.0,0.61037523]
[1771169552798,0.0004,69044.0,69035.0,0.02255614]
[1771169553009,0.00052946,69044.0,69035.0,0.02255614]
[1771169554228,4e-05,69050.0,69035.0,0.09887846]
[1771169554440,4e-05,69050.0,69040.0,0.61037523]
[1771169554684,0.00799606,69049.0,69035.0,0.00012946]
[1771169554857,0.07241413,69048.0,69035.0,0.00012946]
[1771169555073,0.00013402,69043.0,69035.0,0.00012946]
[1771169555842,0.00799606,69043.0,69035.0,0.00012946]
[1771169556041,0.00048331,69042.0,69035.0,0.00012946]
[1771169556857,0.00048331,69040.0,69035.0,0.00012946]
[1771169557060,0.00799606,69039.0,69030.0,4e-05]
[1771169557294,0.08041916,69039.0,69030.0,4e-05]
[1771169557461,0.00799606,69038.0,69030.0,4e-05]
[1771169560345,4e-05,69042.0,69030.0,4e-05]
[1771169560556,0.00016939,69042.0,69032.0,0.61037523]
[1771169560774,0.00016939,69042.0,69033.0,0.02255614]
[1771169560963,0.00016939,69042.0,69030.0,4e-05]
[1771169560964,0.00048,69050.0,69030.0,4e-05]
[1771169561245,0.00048,69050.0,69024.0,4e-05]
[1771169561246,0.00048,69050.0,69008.0,0.02259614]
[1771169561247,0.00790667,69025.0,69008.0,0.02259614]
[1771169561459,0.00790667,69024.0,69017.0,8e-05]
[1771169561670,0.08034588,69024.0,69017.0,8e-05]
[1771169562104,4e-05,69028.0,69017.0,8e-05]
[1771169562287,4e-05,69028.0,69018.0,0.61037523]
[1771169562522,4e-05,69028.0,69017.0,8e-05]
[1771169562953,4e-05,69028.0,69010.0,4e-05]
[1771169563150,0.61037523,69022.0,69010.0,4e-05]
[1771169563365,0.00790667,69023.0,69012.0,0.00016941]
[1771169563572,0.07244623,69017.0,69012.0,0.00016941]
[1771169563780,0.00790667,69017.0,69012.0,0.00016941]
[1771169566445,4e-05,69024.0,69012.0,0.00016941]
[1771169566661,4e-05,69024.0,69013.0,4e-05]
[1771169566848,4e-05,69024.0,69014.0,0.61037523]
[1771169567062,4e-05,69024.0,69015.0,0.02383807]
[1771169567719,4e-05,69026.0,69017.0,0.02383807]
[1771169568300,4e-05,69030.0,69018.0,8e-05]
[1771169568513,4e-05,69032.0,69022.0,0.10085779]
[1771169568747,4e-05,69034.0,69025.0,0.02383807]
[1771169569072,4e-05,69034.0,69026.0,0.02383807]
[1771169569620,0.09284,69036.0,69028.0,0.02383807]
[1771169569985,4e-05,69036.0,69028.0,0.02383807]
[1771169570405,4e-05,69036.0,69028.0,0.02369124]
[1771169571540,4e-05,69036.0,69027.0,4e-05]
[1771169573367,4e-05,69036.0,69024.0,4e-05]
[1771169573368,4e-05,69032.0,69025.0,0.02383807]
[1771169573567,4e-05,69036.0,69025.0,0.02383807]
[1771169574427,4e-05,69036.0,69028.0,0.0002]
[1771169574632,4e-05,69036.0,69028.0,0.02403807]
[1771169577797,4e-05,69040.0,69031.0,0.02383807]
[1771169577995,4e-05,69042.0,69031.0,0.10080179]
[1771169578203,4e-05,69042.0,69032.0,0.02383807]
[1771169580349,4e-05,69044.0,69034.0,0.02383807]
[1771169581480,0.00016939,69044.0,69034.0,0.02383807]
[1771169582877,0.00016939,69044.0,69034.0,0.10079379]
[1771169583076,0.00016939,69044.0,69035.0,0.02383807]
[1771169586261,0.00822289,69044.0,69032.0,4e-05]
[1771169586482,0.0080535,69043.0,69032.0,4e-05]
[1771169587608,0.07242235,69040.0,69032.0,4e-05]
[1771169587968,0.07242262,69041.0,69032.0,4e-05]
[1771169588309,4e-05,69034.0,69032.0,4e-05]
[1771169589467,4e-05,69034.0,69030.0,4e-05]
[1771169589468,4e-05,69034.0,69022.0,4e-05]
[1771169589894,4e-05,69036.0,69026.0,0.02383807]
[1771169590406,4e-05,69036.0,69022.0,4e-05]
[1771169590613,0.02029844,69035.0,69022.0,4e-05]
[1771169593487,4e-05,69036.0,69022.0,4e-05]
[1771169596019,4e-05,69036.0,69024.0,0.00024]
[1771169596279,0.02029844,69031.0,69020.0,4e-05]
[1771169596602,0.09274225,69019.0,69018.0,4e-05]
[1771169597212,0.02029844,69019.0,69002.0,0.02470076]
[1771169598756,0.02029844,69019.0,69005.0,0.02454076]
[1771169600082,0.02029844,69025.0,69009.0,0.02454076]
[1771169600497,4e-05,69028.0,69014.0,0.02474076]
[1771169600916,0.07,69021.0,69014.0,0.02474076]
[1771169601124,4e-05,69028.0,69014.0,0.02474076]
[1771169602182,4e-05,69028.0,69015.0,0.10078579]
[1771169602355,4e-05,69028.0,69018.0,0.02454076]
[1771169603157,4e-05,69020.0,69018.0,0.02446076]
[1771169603370,4e-05,69020.0,69014.0,0.0002]
[1771169603371,8e-05,69020.0,69014.0,0.0002]
[1771169603560,8e-05,69020.0,69014.0,0.02474076]
[1771169613267,4e-05,69024.0,69014.0,0.02474076]
[1771169613478,4e-05,69024.0,69015.0,0.02454076]
[1771169613895,4e-05,69024.0,69014.0,0.0002]
[1771169614454,0.07,69018.0,69014.0,0.0002]
[1771169614657,4e-05,69024.0,69014.0,0.0002]
[1771169618371,4e-05,69020.0,69014.0,0.02470076]
[1771169621709,4e-05,69020.0,69014.0,0.00016]
[1771169622909,0.01041844,69022.0,69014.0,0.00016]
[1771169623703,0.07,69016.0,69014.0,0.00016]
[1771169624063,0.00044,69024.0,69014.0,0.02323419]
[1771169628904,4e-05,69028.0,69019.0,0.02307419]
[1771169631744,4e-05,69028.0,69016.0,4e-05]
[1771169632079,0.04318768,69027.0,69016.0,4e-05]
[1771169633244,4e-05,69018.0,69016.0,4e-05]
[1771169635733,4e-05,69022.0,69016.0,4e-05]
[1771169636399,4e-05,69022.0,69016.0,0.02311419]
[1771169636955,8e-05,69030.0,69018.0,0.61014551]
[1771169637171,0.00044,69036.0,69018.0,0.61014551]
[1771169637172,0.00044,69036.0,69029.0,0.02314033]
[1771169637373,0.00044,69036.0,69029.0,6.614e-05]
[1771169637574,0.00044,69036.0,69022.0,4e-05]
[1771169638415,0.03011891,69034.0,69022.0,4e-05]
[1771169641067,0.01041844,69033.0,69022.0,4e-05]
[1771169641212,4e-05,69034.0,69022.0,4e-05]
[1771169641417,0.01041844,69031.0,69022.0,4e-05]
[1771169641766,0.01041844,69030.0,69022.0,4e-05]
[1771169642718,0.0828508,69030.0,69022.0,4e-05]
[1771169642911,0.03863745,69030.0,69022.0,4e-05]
[1771169643795,0.07243099,69033.0,69022.0,4e-05]
[1771169644204,0.1101528,69033.0,69022.0,4e-05]
[1771169644542,0.07243055,69032.0,69022.0,4e-05]
[1771169644715,0.07243308,69030.0,69022.0,4e-05]
[1771169645072,0.61010964,69032.0,69019.0,0.0002]
[1771169645279,8e-05,69023.0,69019.0,0.0002]
[1771169648203,4e-05,69024.0,69022.0,4e-05]
[1771169648583,4e-05,69028.0,69022.0,4e-05]
[1771169648788,4e-05,69030.0,69024.0,0.02319419]
[1771169649725,4e-05,69030.0,69024.0,0.00012]
[1771169653574,0.00044,69030.0,69024.0,0.02349631]
[1771169653920,0.00044,69030.0,69024.0,0.00012]
[1771169660208,4e-05,69032.0,69025.0,0.02353631]
[1771169663180,4e-05,69030.0,69028.0,4e-05]
[1771169663407,0.00044,69032.0,69026.0,0.02337631]
[1771169674321,0.00044,69032.0,69025.0,0.00016]
[1771169679364,0.00044,69032.0,69026.0,0.02337631]
[1771169682640,0.00044,69032.0,69025.0,0.00036]
[1771169686881,0.01049844,69029.0,69025.0,0.00036]
[1771169691690,0.08293187,69029.0,69025.0,0.00036]
[1771169692088,0.08293187,69029.0,69019.0,0.0002]
[1771169692644,0.07243465,69028.0,69019.0,0.0002]
[1771169692876,0.07243437,69028.0,69019.0,0.0002]
[1771169693073,0.07243629,69027.0,69019.0,0.0002]
[1771169693223,4e-05,69020.0,69019.0,0.0002]
[1771169702817,4e-05,69020.0,69016.0,8.19e-05]
[1771169703022,4e-05,69020.0,69011.0,0.0002]
[1771169703205,8.996e-05,69020.0,69011.0,0.0002]
[1771169706818,8.996e-05,69020.0,69019.0,0.0002]
[1771169707231,8.996e-05,69020.0,69011.0,0.0002]
[1771169708214,4e-05,69014.0,69012.0,0.00016]
[1771169712296,4e-05,69014.0,69009.0,0.0002328]
[1771169712508,4e-05,69014.0,69000.0,0.00024]
[1771169712509,0.02459368,69013.0,68998.0,0.0001249]
[1771169712714,4e-05,69014.0,68985.0,0.02292875]